bitfinex-derivatives/quotes_SOLF0:USTF0_20250529
["timestamp","ask_amount","ask_price","bid_price","bid_amount"]
[1748486380785,5.7447,174.02,173.99,0.03748888]
[1748486380982,0.03888527,174.03,173.99,0.03748888]
[1748486381886,5.7453,174.01,173.99,0.03748888]
[1748486382187,0.03888527,174.03,173.99,0.03748888]
[1748486382589,5.78328527,174.03,173.99,0.03748888]
[1748486383091,0.03888527,174.03,173.99,0.03748888]
[1748486384486,5.78328527,174.03,173.99,0.03748888]
[1748486386085,5.7447,174.02,173.99,0.03748888]
[1748486386390,0.03888527,174.03,173.99,0.03748888]
[1748486386795,5.78348527,174.03,173.99,0.03748888]
[1748486387091,0.03888527,174.03,173.99,0.03748888]
[1748486387390,5.78338527,174.03,173.99,0.03748888]
[1748486387889,0.03888527,174.03,173.99,0.03748888]
[1748486388592,5.7452,174.01,173.99,0.03748888]
[1748486389292,0.03888527,174.03,173.99,0.03748888]
[1748486389892,5.7448,174.02,173.99,0.03748888]
[1748486390794,0.03888527,174.03,173.99,0.03748888]
[1748486391088,2.0604,174.02,173.89,55.28]
[1748486391290,2.0604,174.02,173.88,1.8814]
[1748486391487,1.9059,174.01,173.9,5.7486]
[1748486391799,5.7466,173.97,173.88,1.8814]
[1748486392097,0.04402111,173.94,173.91,5.78665384]
[1748486392294,0.04402111,173.94,173.91,0.03855384]
[1748486392592,0.04402111,173.94,173.92,5.7478]
[1748486393790,0.04402111,173.94,173.91,5.78685384]
[1748486394395,0.04402111,173.94,173.92,5.748]
[1748486395393,0.04402111,173.94,173.91,5.78675384]
[1748486395594,0.04402111,173.94,173.91,0.03855384]
[1748486396094,0.04402111,173.94,173.91,5.78685384]
[1748486396693,0.04402111,173.94,173.91,0.03855384]
[1748486398493,2.0127,174.07,173.92,59.28955998]
[1748486398698,1.9128,174.08,173.93,1.9287]
[1748486399298,0.04195245,174.02,173.99,0.03960037]
[1748486399895,0.04195245,174.02,174.01,5.745]
[1748486402304,0.04195245,174.02,173.99,0.03960037]
[1748486403398,0.04195245,174.02,173.99,5.78500037]
[1748486403792,0.04195245,174.02,173.99,0.03960037]
[1748486404099,0.04195245,174.02,174.01,5.745]
[1748486406615,5.245e-05,174.02,174.01,5.745]
[1748486408409,54.32,174.14,174.0,3.9648]
[1748486408711,5.7411,174.13,174.0,3.9648]
[1748486408897,54.32,174.14,174.07,5.743]
[1748486409204,2.0326,174.15,174.02,4.94955998]
[1748486409409,0.04414321,174.1,174.09,5.7423]
[1748486410307,54.32,174.19,174.07,0.04378531]
[1748486410510,54.32,174.19,174.08,4.94955998]
[1748486410697,54.32,174.19,174.09,1.9765]
[1748486411104,5.7397,174.18,174.09,1.9765]
[1748486411405,0.04190407,174.15,174.12,0.03962558]
[1748486411609,0.04190407,174.15,174.14,5.7407]
[1748486412512,54.32,174.24,174.18,5.7392]
[1748486412712,54.32,174.24,174.13,2.0414]
[1748486413007,6.0072,174.28,174.13,56.3614]
[1748486413305,6.0072,174.28,174.19,0.03913452]
[1748486413506,0.04188725,174.22,174.19,0.03913452]
[1748486415121,5.7387,174.21,174.19,0.03913452]
[1748486415517,0.04188725,174.22,174.19,0.03913452]
[1748486416218,5.7388,174.2,174.19,0.03913452]
[1748486419728,5.7385,174.21,174.19,0.03913452]
[1748486419925,0.04188725,174.22,174.19,0.03913452]
[1748486423222,5.77998725,174.22,174.19,0.03913452]
[1748486424423,5.7385,174.21,174.19,0.03913452]
[1748486425522,5.77998725,174.22,174.19,0.03913452]
[1748486425721,0.04188725,174.22,174.19,0.03913452]
[1748486425925,5.7386,174.21,174.19,0.03913452]
[1748486426121,0.04188725,174.22,174.19,0.03913452]
[1748486426627,5.78008725,174.22,174.19,0.03913452]
[1748486426823,0.04188725,174.22,174.19,0.03913452]
[1748486427227,5.7388,174.2,174.19,0.03913452]
[1748486431931,5.7405,174.15,174.1,3.7853]
[1748486432234,64.09560648,174.21,174.1,9.527]
[1748486432428,64.09560648,174.21,174.1,3.7853]
[1748486432825,0.04250197,174.17,174.14,0.04030986]
[1748486433030,5.7404,174.15,174.14,0.04030986]
[1748486434831,5.7402,174.16,174.14,0.04030986]
[1748486435536,5.7404,174.15,174.14,0.04030986]
[1748486436536,5.7401,174.16,174.14,0.04030986]
[1748486437238,5.78230197,174.17,174.14,0.04030986]
[1748486437437,0.04250197,174.17,174.14,0.04030986]
[1748486437636,5.7401,174.16,174.14,0.04030986]
[1748486438738,5.7404,174.15,174.14,0.04030986]
[1748486439639,5.7402,174.16,174.14,0.04030986]
[1748486440146,5.7403,174.16,174.14,0.04030986]
[1748486440439,0.04250197,174.17,174.14,0.04030986]
[1748486440629,5.7401,174.16,174.14,0.04030986]
[1748486440829,0.04250197,174.17,174.14,0.04030986]
[1748486441239,5.7404,174.15,174.14,0.04030986]
[1748486444541,0.04250197,174.17,174.14,0.04030986]
[1748486446842,5.78230197,174.17,174.14,0.04030986]
[1748486447043,0.04250197,174.17,174.14,0.04030986]
[1748486447437,5.7404,174.15,174.14,0.04030986]
[1748486447636,0.04250197,174.17,174.14,0.04030986]
[1748486449338,0.04250197,174.17,174.14,5.78080986]
[1748486450043,0.04250197,174.17,174.14,0.04030986]
[1748486451641,0.04250197,174.17,174.14,5.78080986]
[1748486452543,0.04250197,174.17,174.14,0.04030986]
[1748486454550,5.78230197,174.17,174.14,0.04030986]
[1748486455246,0.04250197,174.17,174.14,5.78100986]
[1748486455642,0.04250197,174.17,174.14,0.04030986]
[1748486456042,5.78250197,174.17,174.14,0.04030986]
[1748486456238,0.04250197,174.17,174.14,0.04030986]
[1748486456642,5.7403,174.16,174.14,0.04030986]
[1748486456839,0.04250197,174.17,174.14,0.04030986]
[1748486457048,5.7402,174.16,174.14,0.04030986]
[1748486457248,0.04250197,174.17,174.14,0.04030986]
[1748486458449,0.04250197,174.17,174.14,5.78100986]
[1748486458948,0.04250197,174.17,174.14,0.04030986]
[1748486459540,0.04250197,174.17,174.14,5.78080986]
[1748486460241,0.04250197,174.17,174.14,0.04030986]
[1748486460653,5.7404,174.15,174.14,0.04030986]
[1748486460841,0.04250197,174.17,174.06,4.0035]
[1748486461152,64.09560648,174.21,174.06,4.0035]
[1748486461350,5.7408,174.14,174.09,5.7423]
[1748486461650,64.09560648,174.21,174.06,4.0035]
[1748486461847,5.7409,174.14,174.12,0.03697478]
[1748486462046,0.04030243,174.15,174.12,0.03697478]
[1748486462248,5.7407,174.14,174.12,0.03697478]
[1748486462752,0.04030243,174.15,174.12,0.03697478]
[1748486463447,5.78080243,174.15,174.12,0.03697478]
[1748486464150,5.7411,174.13,174.12,0.03697478]
[1748486464559,5.78080243,174.15,174.12,0.03697478]
[1748486464853,0.04030243,174.15,174.12,0.03697478]
[1748486466759,0.04030243,174.15,174.12,5.77817478]
[1748486467146,0.04030243,174.15,174.12,0.03697478]
[1748486468857,0.04030243,174.15,174.12,5.77807478]
[1748486469054,0.04030243,174.15,174.12,0.03697478]
[1748486470047,0.04030243,174.15,174.12,5.77817478]
[1748486470252,0.04030243,174.15,174.12,0.03697478]
[1748486470857,0.04030243,174.15,174.13,5.7411]
[1748486471254,0.04030243,174.15,174.12,0.03697478]
[1748486471457,0.04030243,174.15,174.14,5.7407]
[1748486472260,0.04030243,174.15,174.13,5.7409]
[1748486472460,0.04030243,174.15,174.12,0.03697478]
[1748486473464,5.741,174.14,174.12,0.03697478]
[1748486474462,5.78070243,174.15,174.12,0.03697478]
[1748486475460,0.04030243,174.15,174.12,0.03697478]
[1748486476966,0.04030243,174.15,174.14,5.7407]
[1748486477668,0.04030243,174.15,174.12,0.03697478]
[1748486480072,5.7408,174.14,174.12,0.03697478]
[1748486480274,0.04030243,174.15,174.12,0.03697478]
[1748486480577,5.7411,174.13,174.12,0.03697478]
[1748486481277,5.7408,174.14,174.12,0.03697478]
[1748486482274,5.7411,174.13,174.12,0.03697478]
[1748486483572,0.04030243,174.15,174.12,0.03697478]
[1748486485074,0.04030243,174.15,174.12,5.77807478]
[1748486485675,0.04030243,174.15,174.12,0.03697478]
[1748486489283,0.04030243,174.15,174.12,5.77827478]
[1748486489485,0.04030243,174.15,174.12,0.03697478]
[1748486490480,5.7408,174.14,174.12,0.03697478]
[1748486490684,0.04030243,174.15,174.12,0.03697478]
[1748486492491,5.78070243,174.15,174.12,0.03697478]
[1748486493190,0.04030243,174.15,174.12,0.03697478]
[1748486493682,5.7407,174.14,174.12,0.03697478]
[1748486493888,0.04030243,174.15,174.12,0.03697478]
[1748486494089,5.7411,174.13,174.12,0.03697478]
[1748486494684,5.7418,174.11,174.05,5.7197]
[1748486494879,5.7418,174.11,174.06,5.7431]
[1748486495087,5.7418,174.11,174.05,5.7197]
[1748486495791,0.03725603,174.1,174.07,5.743]
[1748486495985,0.03631886,174.1,174.07,0.0424765]
[1748486496185,0.03631886,174.1,174.09,5.7424]
[1748486497486,0.03631886,174.1,174.08,5.7426]
[1748486497691,0.03631886,174.1,174.07,0.0424765]
[1748486498291,0.03631886,174.1,174.07,5.7852765]
[1748486498698,0.03631886,174.1,174.07,0.0424765]
[1748486499388,51.58,174.18,174.07,0.0424765]
[1748486499688,51.58,174.18,174.05,5.7197]
[1748486500285,0.04262255,174.13,174.1,0.0404739]
[1748486500480,0.04262255,174.13,174.11,5.7415]
[1748486501090,0.04262255,174.13,174.12,5.7414]
[1748486501292,0.04262255,174.13,174.1,0.0404739]
[1748486502484,0.04262255,174.13,174.12,5.7414]
[1748486502789,0.04262255,174.13,174.1,0.0404739]
[1748486503395,0.04262255,174.13,174.12,5.7414]
[1748486504294,0.04262255,174.13,174.11,5.7416]
[1748486504495,0.04262255,174.13,174.1,0.0404739]
[1748486505497,0.04262255,174.13,174.1,5.7824739]
[1748486505696,0.04262255,174.13,174.1,0.0404739]
[1748486507595,0.04262255,174.13,174.11,5.7416]
[1748486509700,0.04262255,174.13,174.1,0.0404739]
[1748486509904,0.04262255,174.13,174.12,5.7414]
[1748486513905,0.04262255,174.13,174.1,5.7821739]
[1748486514598,0.04262255,174.13,174.1,0.0404739]
[1748486516809,0.04262255,174.13,174.1,5.7824739]
[1748486517006,0.04262255,174.13,174.1,0.0404739]
[1748486518203,0.04262255,174.13,174.1,5.7824739]
[1748486519011,0.04262255,174.13,174.11,5.7416]
[1748486519212,0.04262255,174.13,174.1,0.0404739]
[1748486519814,0.04262255,174.13,174.1,5.7823739]
[1748486520110,0.04262255,174.13,174.1,0.0404739]
[1748486520606,0.04262255,174.13,174.12,5.7414]
[1748486520807,51.58,174.18,174.1,0.0404739]
[1748486521806,0.03678974,174.16,174.1,0.0404739]
[1748486523506,0.03678974,174.16,174.15,5.7404]
[1748486523706,0.03678974,174.16,174.14,0.0364085]
[1748486524309,0.03678974,174.16,174.15,5.7404]
[1748486527713,8.974e-05,174.16,174.15,5.7404]
[1748486531920,5.7369,174.26,174.15,10.68610648]
[1748486532113,50.76,174.28,174.15,4.94610648]
[1748486532514,5.737,174.26,174.15,4.94610648]
[1748486532822,0.03851104,174.22,174.19,0.04338123]
[1748486533216,0.03851104,174.22,174.21,5.7384]
[1748486533720,50.76,174.28,174.25,5.7371]
[1748486533916,3.8203,174.31,174.25,5.7371]
[1748486534116,5.7363,174.28,174.24,5.7373]
[1748486534419,3.8203,174.31,174.24,5.7373]
[1748486534720,0.03728987,174.28,174.25,0.03696627]
[1748486535020,5.7365,174.27,174.25,0.03696627]
[1748486535418,5.77358987,174.28,174.25,0.03696627]
[1748486535821,0.03728987,174.28,174.25,0.03696627]
[1748486536019,5.7368,174.26,174.25,0.03696627]
[1748486536521,0.03728987,174.28,174.18,5.7393]
[1748486536522,5.7377,174.24,174.18,5.7393]
[1748486536730,8.76640648,174.31,174.18,5.7393]
[1748486537028,5.7377,174.24,174.18,5.7393]
[1748486537521,0.04362245,174.23,174.19,0.04224703]
[1748486537924,5.78142245,174.23,174.19,0.04224703]
[1748486538116,5.78142245,174.23,174.19,5.78124703]
[1748486538117,0.04362245,174.23,174.19,5.78124703]
[1748486538321,0.04362245,174.23,174.19,0.04224703]
[1748486539727,5.78152245,174.23,174.19,0.04224703]
[1748486540327,0.04362245,174.23,174.19,0.04224703]
[1748486540927,5.7383,174.22,174.19,0.04224703]
[1748486541830,5.7385,174.21,174.19,0.04224703]
[1748486542126,0.04362245,174.23,174.19,0.04224703]
[1748486542528,5.7387,174.21,174.19,0.04224703]
[1748486542930,0.04362245,174.23,174.19,0.04224703]
[1748486544129,5.7387,174.2,174.19,0.04224703]
[1748486545127,0.04362245,174.23,174.12,5.921]
[1748486545128,5.74,174.17,174.12,5.921]
[1748486545532,5.9998,174.22,174.12,5.921]
[1748486545730,5.9998,174.22,174.12,11.6622]
[1748486545927,5.9998,174.22,174.12,5.921]
[1748486546227,5.7396,174.18,174.15,0.03773868]
[1748486546732,0.04346135,174.19,174.15,0.03773868]
[1748486547734,4.94610648,174.18,174.06,49.94]
[1748486548331,4.94610648,174.18,174.06,55.6832]
[1748486548734,0.0426109,174.14,174.1,0.03848024]
[1748486549325,5.7413,174.13,174.1,0.03848024]
[1748486549932,5.7414,174.12,174.1,0.03848024]
[1748486550132,0.0426109,174.14,174.1,0.03848024]
[1748486550936,5.7411,174.13,174.1,0.03848024]
[1748486551337,0.0426109,174.14,174.1,0.03848024]
[1748486552136,5.7411,174.13,174.1,0.03848024]
[1748486553537,5.7415,174.12,174.1,0.03848024]
[1748486553738,0.0426109,174.14,174.01,55.7612]
[1748486554033,5.7437,174.05,174.0,5.7453]
[1748486554339,4.94610648,174.12,174.0,5.7453]
[1748486554340,49.94,174.09,174.0,5.7453]
[1748486554935,5.78463273,174.06,174.03,0.03992354]
[1748486555333,0.04103273,174.06,174.03,0.03992354]
[1748486555938,0.04103273,174.06,174.03,5.78422354]
[1748486556134,0.04103273,174.06,174.03,0.03992354]
[1748486557842,5.78453273,174.06,174.03,0.03992354]
[1748486558533,0.04103273,174.06,174.03,0.03992354]
[1748486559034,5.83543273,174.06,174.03,0.03992354]
[1748486559636,5.83543273,174.06,173.93,49.96]
[1748486559842,5.7944,174.06,173.93,49.96]
[1748486560041,5.7456,174.0,173.94,5.747]
[1748486560242,49.96,174.03,173.88,60.73650648]
[1748486560631,0.03700309,173.97,173.95,5.747]
[1748486560840,0.03861221,173.98,173.95,5.747]
[1748486561931,0.03861221,173.98,173.96,5.7466]
[1748486562131,0.03861221,173.98,173.94,0.03834817]
[1748486562339,0.03861221,173.98,173.97,5.7463]
[1748486565843,1.221e-05,173.98,173.97,5.7463]
[1748486567346,1.221e-05,173.98,173.94,50.01834817]
[1748486567553,1.221e-05,173.98,173.94,0.03834817]
[1748486569249,1.221e-05,173.98,173.95,5.7469]
[1748486570247,1.221e-05,173.98,173.94,0.03834817]
[1748486570645,1.221e-05,173.98,173.95,5.7468]
[1748486571647,1.221e-05,173.98,173.94,0.03834817]
[1748486572650,1.221e-05,173.98,173.94,5.78544817]
[1748486574249,5.74611221,173.98,173.94,0.03834817]
[1748486575055,5.74611221,173.98,173.94,5.78564817]
[1748486576152,5.7463,173.97,173.94,0.03834817]
[1748486576943,5.7466,173.97,173.94,0.03834817]
[1748486577856,1.221e-05,173.98,173.94,0.03834817]
[1748486578153,1.221e-05,173.98,173.97,5.7463]
[1748486581852,49.18,174.07,174.03,5.7442]
[1748486582354,49.18,174.07,174.04,5.744]
[1748486582553,5.7427,174.08,174.04,5.744]
[1748486582747,5.78265242,174.08,174.04,5.781012]
[1748486583551,0.03995242,174.08,174.05,5.7434]
[1748486583849,0.03995242,174.08,174.04,0.037012]
[1748486584050,0.03995242,174.08,174.05,5.7436]
[1748486585255,0.03995242,174.08,174.06,5.7433]
[1748486585954,0.03995242,174.08,174.05,5.7436]
[1748486586148,0.03995242,174.08,174.04,0.037012]
[1748486586451,0.03995242,174.08,174.04,5.780812]
[1748486586652,0.03995242,174.08,174.04,0.037012]
[1748486587047,0.03995242,174.08,174.06,5.7433]
[1748486587950,0.03995242,174.08,174.05,5.7436]
[1748486590557,0.03995242,174.08,174.04,5.780912]
[1748486590855,0.03995242,174.08,174.04,0.037012]
[1748486591255,0.03995242,174.08,174.06,5.7433]
[1748486592055,0.03995242,174.08,174.04,0.037012]
[1748486593151,0.03995242,174.08,174.04,5.780912]
[1748486593355,0.03995242,174.08,174.04,0.037012]
[1748486593857,0.03995242,174.08,174.05,5.7434]
[1748486594059,0.03995242,174.08,174.04,0.037012]
[1748486595361,0.03995242,174.08,174.07,5.743]
[1748486596062,0.03995242,174.08,174.05,5.6978]
[1748486596759,0.03995242,174.08,174.05,11.4414]
[1748486597162,0.03995242,174.08,174.05,5.6978]
[1748486597454,0.03995242,174.08,174.04,0.037012]
[1748486599157,5.7437,174.05,174.04,0.037012]
[1748486599661,5.7435,174.06,174.04,0.037012]
[1748486600363,5.7431,174.07,174.04,0.037012]
[1748486601566,5.7434,174.06,174.04,0.037012]
[1748486602064,5.7437,174.05,174.04,0.037012]
[1748486602261,0.03995242,174.08,174.04,0.037012]
[1748486602458,5.7437,174.06,174.04,0.037012]
[1748486602659,0.03995242,174.08,174.04,0.037012]
[1748486603364,5.7436,174.06,174.04,0.037012]
[1748486603764,0.03995242,174.08,174.04,0.037012]
[1748486603765,5.7437,174.05,174.04,0.037012]
[1748486604755,5.7435,174.06,174.04,0.037012]
[1748486605357,5.7431,174.07,174.04,0.037012]
[1748486605555,0.03995242,174.08,174.04,0.037012]
[1748486606070,0.03995242,174.08,173.93,48.36]
[1748486606367,4.94610648,174.1,173.93,48.36]
[1748486606668,2.0398,174.09,173.93,48.36]
[1748486607269,0.03878314,174.03,173.99,0.04319175]
[1748486607566,5.78338314,174.03,173.99,0.04319175]
[1748486608162,5.7451,174.01,173.99,0.04319175]
[1748486609265,0.03878314,174.03,173.99,0.04319175]
[1748486610572,0.03878314,174.03,174.01,5.7448]
[1748486610969,0.03878314,174.03,173.99,0.04319175]
[1748486611765,0.03878314,174.03,174.01,5.745]
[1748486611966,0.03878314,174.03,173.99,0.04319175]
[1748486612173,0.03878314,174.03,174.0,5.7451]
[1748486612970,0.03878314,174.03,174.01,5.7449]
[1748486613170,0.03878314,174.03,173.99,0.04319175]
[1748486614271,0.03878314,174.03,174.02,5.7447]
[1748486618174,1.9399,174.14,174.0,10.98160648]
[1748486618479,1.8708,174.15,174.04,4.94610648]
[1748486618670,48.36,174.17,174.05,48.36]
[1748486618971,48.36,174.17,174.09,0.04265193]
[1748486619276,0.0431575,174.13,174.09,0.04265193]
[1748486620168,0.0431575,174.13,174.11,5.7416]
[1748486620365,0.0431575,174.13,174.09,0.04265193]
[1748486622871,5.7417,174.12,174.09,0.04265193]
[1748486624266,0.0431575,174.13,174.09,0.04265193]
[1748486624267,5.7419,174.11,174.09,0.04265193]
[1748486624468,0.0431575,174.13,174.09,0.04265193]
[1748486624977,5.7418,174.11,174.09,0.04265193]
[1748486626573,5.7415,174.12,174.09,0.04265193]
[1748486627070,0.0431575,174.13,174.09,0.04265193]
[1748486628776,5.7418,174.11,174.09,0.04265193]
[1748486630277,5.742,174.1,174.09,0.04265193]
[1748486631978,0.0431575,174.13,174.09,0.04265193]
[1748486632580,5.7419,174.11,174.09,0.04265193]
[1748486633976,5.7414,174.12,174.09,0.04265193]
[1748486634381,0.0431575,174.13,174.09,0.04265193]
[1748486635179,0.0431575,174.13,174.0,54.3755]
[1748486635388,4.94610648,174.13,174.0,54.3755]
[1748486635578,5.7433,174.07,174.02,5.7447]
[1748486635979,47.56,174.11,174.0,54.3755]
[1748486636280,5.7439,174.05,174.04,0.03874861]
[1748486636987,5.7444,174.03,173.96,3.9037]
[1748486637187,49.607,174.11,173.96,3.9037]
[1748486637584,49.607,174.11,173.99,5.7457]
[1748486638089,5.7442,174.04,174.03,0.03616263]
[1748486639586,5.7438,174.05,174.03,0.03616263]
[1748486640086,0.04148851,174.07,174.03,0.03616263]
[1748486640889,17.2044,174.33,174.03,0.03616263]
[1748486641188,17.2044,174.33,174.05,4.94610648]
[1748486641189,47.58,174.18,174.05,4.94610648]
[1748486641989,0.04013253,174.13,174.1,0.03999705]
[1748486642892,0.04013253,174.13,174.12,5.7414]
[1748486643790,0.04013253,174.13,174.1,0.03999705]
[1748486644183,5.7415,174.12,174.1,0.03999705]
[1748486644790,5.78123253,174.13,174.1,0.03999705]
[1748486645388,0.04013253,174.13,174.1,5.78199705]
[1748486645895,0.04013253,174.13,174.1,0.03999705]
[1748486647294,0.04013253,174.13,174.12,5.7414]
[1748486650396,3.253e-05,174.13,174.12,5.7414]
[1748486656896,1.9823,174.25,174.12,10.68610648]
[1748486657199,47.56,174.31,174.1,146.02979705]
[1748486657200,47.56,174.31,174.16,4.94610648]
[1748486657404,2.0426,174.3,174.16,52.50610648]
[1748486657706,5.7365,174.27,174.16,52.50610648]
[1748486657901,5.7365,174.27,174.2,0.04360886]
[1748486658106,0.03876832,174.23,174.2,0.04360886]
[1748486658504,0.03876832,174.23,174.22,5.7381]
[1748486660809,2.0426,174.3,174.26,5.7366]
[1748486661415,2.0426,174.3,174.18,4.94610648]
[1748486661704,0.04088805,174.26,174.22,0.04213602]
[1748486661906,4.777e-05,174.26,174.25,5.7371]
[1748486662101,543.62,174.35,174.22,47.58026173]
[1748486662305,543.62,174.35,174.22,47.54]
[1748486662510,543.62,174.35,174.29,5.7357]
[1748486663215,0.04369749,174.33,174.3,0.03681168]
[1748486663411,0.04369749,174.33,174.3,0.04182799]
[1748486665416,0.04369749,174.33,174.3,5.77712799]
[1748486665614,0.04369749,174.33,174.3,0.04182799]
[1748486666215,5.77819749,174.33,174.3,0.04182799]
[1748486666519,0.04369749,174.33,174.3,0.04182799]
[1748486667614,0.04369749,174.33,174.3,5.77702799]
[1748486668009,0.04369749,174.33,174.3,0.04182799]
[1748486669921,0.04369749,174.33,174.31,5.7348]
[1748486670820,0.04369749,174.33,174.32,5.7348]
[1748486672714,5.7328,174.39,174.34,5.734]
[1748486673122,5.7328,174.39,174.35,5.7338]
[1748486673621,5.77686495,174.39,174.35,5.77518762]
[1748486673823,0.04406495,174.39,174.36,5.7334]
[1748486674016,0.04406495,174.39,174.35,0.04138762]
[1748486674716,0.04406495,174.39,174.35,5.77498762]
[1748486674921,0.04406495,174.39,174.35,0.04138762]
[1748486675518,5.77656495,174.39,174.35,0.04138762]
[1748486676419,5.7329,174.38,174.35,0.04138762]
[1748486677020,0.04406495,174.39,174.35,0.04138762]
[1748486677621,5.7329,174.38,174.35,0.04138762]
[1748486677824,0.04406495,174.39,174.35,0.04138762]
[1748486679023,5.77666495,174.39,174.35,5.77498762]
[1748486680322,5.77666495,174.39,174.35,0.04138762]
[1748486680521,5.7329,174.38,174.35,0.04138762]
[1748486681531,5.77666495,174.39,174.35,0.04138762]
[1748486681728,0.04406495,174.39,174.35,0.04138762]
[1748486682329,0.04406495,174.39,174.35,5.77498762]
[1748486683022,0.04406495,174.39,174.35,0.04138762]
[1748486683633,0.04406495,174.39,174.36,5.7332]
[1748486684432,0.04406495,174.39,174.37,5.7331]
[1748486684930,0.04406495,174.39,174.35,0.04138762]
[1748486685730,0.04406495,174.39,174.36,5.7334]
[1748486685930,0.04406495,174.39,174.35,0.04138762]
[1748486686926,0.04406495,174.39,174.36,5.7333]
[1748486687432,5.77666495,174.39,174.36,5.7333]
[1748486688038,0.04406495,174.39,174.35,0.04138762]
[1748486688533,0.04406495,174.39,174.36,5.7332]
[1748486689126,0.04406495,174.39,174.37,5.7331]
[1748486689333,0.04406495,174.39,174.35,0.04138762]
[1748486691135,0.04406495,174.39,174.38,5.7328]
[1748486693736,0.04406495,174.39,174.35,0.04138762]
[1748486694331,0.04406495,174.39,174.37,5.7332]
[1748486694534,0.04406495,174.39,174.35,0.04138762]
[1748486694936,0.04406495,174.39,174.36,5.7334]
[1748486696036,0.04406495,174.39,174.35,0.04138762]
[1748486696635,5.77686495,174.39,174.35,0.04138762]
[1748486697537,5.7329,174.38,174.35,0.04138762]
[1748486698136,5.77666495,174.39,174.35,5.77508762]
[1748486700239,5.7328,174.38,174.35,0.04138762]
[1748486700439,0.04406495,174.39,174.35,0.04138762]
[1748486701035,0.04406495,174.39,174.36,5.7334]
[1748486701241,0.04406495,174.39,174.35,0.04138762]
[1748486701744,0.04406495,174.39,174.36,5.7334]
[1748486702234,0.04406495,174.39,174.35,0.04138762]
[1748486702539,0.04406495,174.39,174.37,5.7329]
[1748486703239,0.04406495,174.39,174.35,0.04138762]
[1748486703240,0.04406495,174.39,174.38,5.7328]
[1748486704741,0.04406495,174.39,174.35,0.04138762]
[1748486705537,0.04406495,174.39,174.35,46.10138762]
[1748486705538,6.495e-05,174.39,174.35,46.10138762]
[1748486705740,6.495e-05,174.39,174.36,1.9743]
[1748486705948,6.495e-05,174.39,174.38,5.7328]
[1748486711047,7.7468,174.49,174.36,6.007]
[1748486711339,2.0175,174.49,174.36,6.007]
[1748486711544,5.7298,174.48,174.36,6.007]
[1748486711943,5.7298,174.48,174.44,5.7306]
[1748486712142,5.76840332,174.48,174.44,0.04238714]
[1748486712440,5.73,174.47,174.44,0.04238714]
[1748486712938,5.76820332,174.48,174.44,0.04238714]
[1748486713143,0.03860332,174.48,174.44,0.04238714]
[1748486713747,5.7302,174.46,174.44,0.04238714]
[1748486713941,0.03860332,174.48,174.44,0.04238714]
[1748486714739,0.03860332,174.48,174.47,5.7299]
[1748486715742,3.32e-06,174.48,174.47,5.7299]
[1748486716050,46.04,174.55,174.45,1.9939]
[1748486716242,4.58791667,174.56,174.45,1.9939]
[1748486716944,4.58791667,174.56,174.51,5.7283]
[1748486717141,4.58791667,174.56,174.49,0.0412767]
[1748486720149,4.58791667,174.56,174.55,5.7272]
[1748486723545,5.9492,174.64,174.58,5.726]
[1748486723750,5.7249,174.63,174.59,0.04041181]
[1748486724356,5.725,174.62,174.59,0.04041181]
[1748486725148,5.9492,174.64,174.59,0.04041181]
[1748486725149,5.7253,174.61,174.59,0.04041181]
[1748486725355,5.9492,174.64,174.59,0.04041181]
[1748486725949,5.7254,174.61,174.59,0.04041181]
[1748486726350,5.9492,174.64,174.59,0.04041181]
[1748486727755,5.7253,174.61,174.59,0.04041181]
[1748486727955,5.9492,174.64,174.59,0.04041181]
[1748486729052,5.7252,174.62,174.59,0.04041181]
[1748486729245,5.9492,174.64,174.59,0.04041181]
[1748486730366,495.16,174.67,174.59,0.04041181]
[1748486730557,499.2044,174.67,174.59,0.04041181]
[1748486731054,5.7247,174.63,174.59,5.76631181]
[1748486731653,5.7247,174.63,174.59,0.04041181]
[1748486731863,499.2044,174.67,174.59,0.04041181]
[1748486732253,499.2044,174.67,174.61,5.7252]
[1748486732757,499.2044,174.67,174.62,5.725]
[1748486732956,5.7239,174.66,174.63,0.04161401]
[1748486733158,499.2044,174.67,174.63,0.04399077]
[1748486733554,5.7237,174.66,174.63,0.04399077]
[1748486733751,499.2044,174.67,174.63,0.04399077]
[1748486733953,4.0444,174.67,174.63,0.04399077]
[1748486734158,9.768,174.67,174.63,0.04399077]
[1748486734756,5.7237,174.66,174.63,0.04399077]
[1748486734956,4.0444,174.67,174.63,0.04399077]